fUST/lending_fUST_20240720
["ID","MTS","AMOUNT","RATE_DAILY","PERIOD"]
[332669445,1721415040757,-500.0,0.00016438,2]
[332669447,1721415040766,-501.1559506,0.00016438,2]
[332669449,1721415040775,-3309.55,0.00016438,2]
[332669451,1721415040785,-500.0,0.00016438,2]
[332669453,1721415040795,-500.0,0.00016438,2]
[332669455,1721415040804,-500.0,0.00016438,2]
[332669457,1721415040814,-1847.42,0.00016438,2]
[332669459,1721415040823,-500.0,0.00016438,2]
[332669461,1721415040833,-500.0,0.00016438,2]
[332669463,1721415040842,-500.0,0.00016438,2]
[332669465,1721415040852,-509.6,0.00016438,2]
[332669467,1721415040861,-500.0,0.00016438,2]
[332669469,1721415040871,-825.43,0.00016438,2]
[332669471,1721415040880,-1297.95,0.00016438,2]
[332669473,1721415040890,-500.0,0.00016438,2]
[332669475,1721415040901,-500.0,0.00016438,2]
[332669477,1721415040911,-500.0,0.00016438,2]
[332669479,1721415040922,-617.70578733,0.00016438,2]
[332669481,1721415040933,-500.0,0.00016438,2]
[332669484,1721415040944,-500.0,0.00016438,2]
[332669486,1721415040954,-743.59,0.00016438,2]
[332669488,1721415040965,-500.0,0.00016438,2]
[332669490,1721415040975,-500.0,0.00016438,2]
[332669492,1721415040984,-500.0,0.00016438,2]
[332669494,1721415040994,-1006.51,0.00016438,2]
[332669496,1721415041003,-500.0,0.00016438,2]
[332669498,1721415041012,-500.0,0.00016438,2]
[332669500,1721415041022,-500.0,0.00016438,2]
[332669502,1721415041031,-500.0,0.00016438,2]
[332669504,1721415041041,-501.95108344,0.00016438,2]
[332669506,1721415041050,-515.1428973,0.00016438,2]
[332669508,1721415041060,-518.13346543,0.00016438,2]
[332669510,1721415041069,-500.0,0.00016438,2]
[332669511,1721415041078,-500.0,0.00016438,2]
[332669513,1721415041087,-500.0,0.00016438,2]
[332669515,1721415041097,-813.99,0.00016438,2]
[332669517,1721415041106,-500.0,0.00016438,2]
[332669519,1721415041115,-500.0,0.00016438,2]
[332669521,1721415041124,-500.45278086,0.00016438,2]
[332669523,1721415041133,-604.61388818,0.00016438,2]
[332669525,1721415041142,-500.0,0.00016438,2]
[332669527,1721415041151,-176.76189301,0.00016438,2]
[332669529,1721415041160,-500.0,0.00016438,2]
[332669531,1721415041169,-954.87,0.00016438,2]
[332669533,1721415041179,-620.37,0.00016438,2]
[332669535,1721415041191,-500.0,0.00016438,2]
[332669538,1721415041202,-602.76,0.00016438,2]
[332669540,1721415041212,-500.0,0.00016438,2]
[332669542,1721415041222,-500.0,0.00016438,2]
[332669544,1721415041232,-327.51002048,0.00016438,2]
[332669546,1721415041244,-421.71656142,0.00016438,2]
[332669548,1721415041256,-500.0,0.00016438,2]
[332669550,1721415041265,-500.0,0.00016438,2]
[332669552,1721415041274,-502.41604891,0.00016438,2]
[332669554,1721415041285,-500.0,0.00016438,2]
[332669556,1721415041294,-500.70920234,0.00016438,2]
[332669558,1721415041303,-500.0,0.00016438,2]
[332669560,1721415041312,-500.0,0.00016438,2]
[332669562,1721415041321,-500.0,0.00016438,2]
[332669564,1721415041331,-1980.13,0.00016438,2]
[332669566,1721415041340,-500.0,0.00016438,2]
[332669568,1721415041350,-500.0,0.00016438,2]
[332669570,1721415041358,-500.0,0.00016438,2]
[332669572,1721415041368,-4602.67,0.00016438,2]
[332669574,1721415041377,-728.55,0.00016438,2]
[332669576,1721415041387,-532.56,0.00016438,2]
[332669578,1721415041396,-500.0,0.00016438,2]
[332669580,1721415041405,-500.0,0.00016438,2]
[332669582,1721415041415,-500.0,0.00016438,2]
[332669584,1721415041425,-500.0,0.00016438,2]
[332669586,1721415041434,-500.0,0.00016438,2]
[332669588,1721415041444,-1591.76,0.00016438,2]
[332669590,1721415041453,-500.0,0.00016438,2]
[332669592,1721415041462,-500.0,0.00016438,2]
[332669594,1721415041472,-2406.31,0.00016438,2]
[332669596,1721415041481,-500.0,0.00016438,2]
[332669598,1721415041490,-500.0,0.00016438,2]
[332669600,1721415041499,-500.0,0.00016438,2]
[332669602,1721415041509,-500.0,0.00016438,2]
[332669604,1721415041519,-500.0,0.00016438,2]
[332669606,1721415041528,-822.34,0.00016438,2]
[332669608,1721415041537,-500.0,0.00016438,2]
[332669610,1721415041546,-500.0,0.00016438,2]
[332669612,1721415041555,-500.0,0.00016438,2]
[332669614,1721415041565,-500.0,0.00016438,2]
[332669616,1721415041574,-500.0,0.00016438,2]
[332669618,1721415041583,-500.0,0.00016438,2]
[332669620,1721415041593,-500.0,0.00016438,2]
[332669622,1721415041602,-500.0,0.00016438,2]
[332669624,1721415041611,-500.0,0.00016438,2]
[332669626,1721415041620,-500.0,0.00016438,2]
[332669628,1721415041631,-766.93,0.00016438,2]
[332669630,1721415041642,-500.0,0.00016438,2]
[332669632,1721415041651,-500.0,0.00016438,2]
[332669634,1721415041660,-500.0,0.00016438,2]
[332669636,1721415041670,-500.0,0.00016438,2]
[332669638,1721415041680,-351.333006,0.00016438,2]
[332669640,1721415041691,-500.0,0.00016438,2]
[332669642,1721415041700,-500.0,0.00016438,2]
[332669644,1721415041709,-500.0,0.00016438,2]
[332669646,1721415041718,-500.0,0.00016438,2]
[332669648,1721415041729,-716.35,0.00016438,2]
[332669650,1721415041740,-2002.03,0.00016438,2]
[332669652,1721415041750,-500.0,0.00016438,2]
[332669654,1721415041760,-1351.27,0.00016438,2]
[332669656,1721415041770,-500.0,0.00016438,2]
[332669658,1721415041781,-500.0,0.00016438,2]
[332669660,1721415041792,-500.0,0.00016438,2]
[332669662,1721415041802,-406.13167061,0.00016438,2]
[332669664,1721415041811,-500.0,0.00016438,2]
[332669667,1721415041823,-504.12546019,0.00016438,2]
[332669669,1721415041834,-151.0,0.00016438,2]
[332669671,1721415041844,-500.0,0.00016438,2]
[332669673,1721415041853,-500.0,0.00016438,2]
[332669675,1721415041863,-750.75,0.00016438,2]
[332669676,1721415041872,-500.0,0.00016438,2]
[332669678,1721415041881,-500.0,0.00016438,2]
[332669680,1721415041890,-500.0,0.00016438,2]
[332669682,1721415041901,-501.73402491,0.00016438,2]
[332669684,1721415041911,-500.0,0.00016438,2]
[332669686,1721415041921,-500.0,0.00016438,2]
[332669688,1721415041931,-500.0,0.00016438,2]
[332669690,1721415041941,-500.0,0.00016438,2]
[332669692,1721415041950,-817.7,0.00016438,2]
[332669694,1721415041959,-500.0,0.00016438,2]
[332669696,1721415041969,-500.0,0.00016438,2]
[332669698,1721415041978,-500.0,0.00016438,2]
[332669700,1721415041987,-501.97715973,0.00016438,2]
[332669702,1721415041998,-500.0,0.00016438,2]
[332669704,1721415042008,-500.0,0.00016438,2]
[332669706,1721415042017,-577.29,0.00016438,2]
[332669708,1721415042026,-500.0,0.00016438,2]
[332669710,1721415042038,-176.98284728,0.00016438,2]
[332669712,1721415042047,-506.56295334,0.00016438,2]
[332669714,1721415042056,-500.0,0.00016438,2]
[332669716,1721415042067,-623.14,0.00016438,2]
[332669719,1721415042078,-500.0,0.00016438,2]
[332669720,1721415042087,-500.0,0.00016438,2]
[332669722,1721415042096,-569.05,0.00016438,2]
[332669724,1721415042106,-500.0,0.00016438,2]
[332669726,1721415042115,-515.98,0.00016438,2]
[332669728,1721415042124,-515.98,0.00016438,2]
[332669730,1721415042133,-515.98,0.00016438,2]
[332669732,1721415042142,-515.98,0.00016438,2]
[332669734,1721415042151,-515.98,0.00016438,2]
[332669736,1721415042161,-515.98,0.00016438,2]
[332669738,1721415042170,-515.98,0.00016438,2]
[332669740,1721415042179,-515.98,0.00016438,2]
[332669742,1721415042188,-500.0,0.00016438,2]
[332669744,1721415042197,-515.98,0.00016438,2]
[332669746,1721415042206,-515.98,0.00016438,2]
[332669748,1721415042215,-510.62201301,0.00016438,2]
[332669750,1721415042225,-515.98,0.00016438,2]
[332669752,1721415042234,-785.89,0.00016438,2]
[332669754,1721415042245,-515.98,0.00016438,2]
[332669756,1721415042256,-515.98,0.00016438,2]
[332669758,1721415042265,-515.98,0.00016438,2]
[332669760,1721415042275,-515.98,0.00016438,2]
[332669763,1721415042286,-515.98,0.00016438,2]
[332669765,1721415042299,-515.98,0.00016438,2]
[332669767,1721415042308,-515.98,0.00016438,2]
[332669769,1721415042318,-515.98,0.00016438,2]
[332669771,1721415042327,-515.98,0.00016438,2]
[332669772,1721415042336,-515.98,0.00016438,2]
[332669774,1721415042345,-947.28,0.00016438,2]
[332669777,1721415042355,-643.93,0.00016438,2]
[332669779,1721415042364,-515.98,0.00016438,2]
[332669781,1721415042373,-515.98,0.00016438,2]
[332669782,1721415042383,-946.11,0.00016438,2]
[332669784,1721415042392,-516.17359652,0.00016438,2]
[332669786,1721415042401,-500.0,0.00016438,2]
[332669788,1721415042411,-500.0,0.00016438,2]
[332669791,1721415042421,-351.42971393,0.00016438,2]
[332669793,1721415042430,-500.0,0.00016438,2]
[332669795,1721415042440,-3022.49,0.00016438,2]
[332669797,1721415042450,-500.0,0.00016438,2]
[332669799,1721415042460,-500.0,0.00016438,2]
[332669801,1721415042469,-500.0,0.00016438,2]
[332669802,1721415042479,-500.0,0.00016438,2]
[332669805,1721415042488,-500.0,0.00016438,2]
[332669806,1721415042498,-500.0,0.00016438,2]
[332669809,1721415042508,-511.38675396,0.00016438,2]
[332669810,1721415042517,-1932.93,0.00016438,2]
[332669812,1721415042527,-509.46276478,0.00016438,2]
[332669814,1721415042536,-500.0,0.00016438,2]
[332669816,1721415042545,-500.0,0.00016438,2]
[332669818,1721415042554,-500.0,0.00016438,2]
[332669820,1721415042564,-1363.61,0.00016438,2]
[332669822,1721415042573,-500.0,0.00016438,2]
[332669824,1721415042583,-500.0,0.00016438,2]
[332669826,1721415042592,-500.0,0.00016438,2]
[332669828,1721415042601,-500.0,0.00016438,2]
[332669830,1721415042611,-2081.62,0.00016438,2]
[332669832,1721415042620,-500.0,0.00016438,2]
[332669834,1721415042630,-683.66,0.00016438,2]
[332669836,1721415042640,-500.50089956,0.00016438,2]
[332669838,1721415042651,-500.0,0.00016438,2]
[332669840,1721415042661,-500.0,0.00016438,2]
[332669842,1721415042671,-500.0,0.00016438,2]
[332669844,1721415042681,-500.0,0.00016438,2]
[332669846,1721415042692,-752.71,0.00016438,2]
[332669848,1721415042702,-500.0,0.00016438,2]
[332669850,1721415042711,-565.79,0.00016438,2]
[332669852,1721415042721,-500.0,0.00016438,2]
[332669854,1721415042731,-500.0,0.00016438,2]
[332669856,1721415042741,-500.0,0.00016438,2]
[332669858,1721415042750,-500.0,0.00016438,2]
[332669860,1721415042760,-528.04,0.00016438,2]
[332669862,1721415042770,-1792.31,0.00016438,2]
[332669864,1721415042779,-500.0,0.00016438,2]
[332669866,1721415042789,-500.0,0.00016438,2]
[332669868,1721415042799,-1050.66,0.00016438,2]
[332669870,1721415042809,-500.0,0.00016438,2]
[332669872,1721415042819,-500.0,0.00016438,2]
[332669874,1721415042829,-982.97,0.00016438,2]
[332669876,1721415042838,-500.0,0.00016438,2]
[332669878,1721415042848,-500.0,0.00016438,2]
[332669880,1721415042858,-500.0,0.00016438,2]
[332669882,1721415042868,-500.0,0.00016438,2]
[332669884,1721415042881,-500.0,0.00016438,2]
[332669886,1721415042891,-500.0,0.00016438,2]
[332669888,1721415042901,-1675.09,0.00016438,2]
[332669890,1721415042910,-500.0,0.00016438,2]
[332669892,1721415042920,-500.0,0.00016438,2]
[332669894,1721415042930,-500.0,0.00016438,2]
[332669896,1721415042939,-507.46979898,0.00016438,2]
[332669898,1721415042949,-500.0,0.00016438,2]
[332669900,1721415042959,-500.0,0.00016438,2]
[332669902,1721415042968,-500.0,0.00016438,2]
[332669904,1721415042978,-500.0,0.00016438,2]
[332669906,1721415042988,-500.0,0.00016438,2]
[332669908,1721415042997,-523.4052699,0.00016438,2]
[332669910,1721415043006,-500.83390528,0.00016438,2]
[332669912,1721415043016,-500.0,0.00016438,2]
[332669914,1721415043026,-500.0,0.00016438,2]
[332669916,1721415043035,-483.20427487,0.00016438,2]
[332669917,1721415043045,-546.89,0.00016438,2]
[332669919,1721415043054,-500.0,0.00016438,2]
[332669922,1721415043064,-500.0,0.00016438,2]
[332669923,1721415043073,-500.0,0.00016438,2]
[332669926,1721415043083,-510.68822699,0.00016438,2]
[332669928,1721415043092,-500.0,0.00016438,2]
[332669930,1721415043102,-365.49888794,0.00016438,2]
[332669932,1721415043112,-2262.25,0.00016438,2]
[332669934,1721415043122,-2049.24,0.00016438,2]
[332669935,1721415043132,-502.27084802,0.00016438,2]
[332669937,1721415043141,-510.23,0.00016438,2]
[332669939,1721415043151,-500.0,0.00016438,2]
[332669941,1721415043160,-2342.15,0.00016438,2]
[332669943,1721415043171,-500.0,0.00016438,2]
[332669945,1721415043180,-1201.69,0.00016438,2]
[332669947,1721415043189,-500.0,0.00016438,2]
[332669949,1721415043201,-500.0,0.00016438,2]
[332669952,1721415043211,-500.0,0.00016438,2]
[332669953,1721415043223,-519.21372656,0.00016438,2]
[332669955,1721415043232,-550.3,0.00016438,2]
[332669958,1721415043242,-915.17,0.00016438,2]
[332669962,1721415043257,-1008.94,0.00016438,2]
[332669964,1721415043266,-500.0,0.00016438,2]
[332669966,1721415043276,-586.89,0.00016438,2]
[332669968,1721415043285,-672.3,0.00016438,2]
[332669970,1721415043297,-500.0,0.00016438,2]
[332669972,1721415043306,-502.01701319,0.00016438,2]
[332669990,1721415043316,-889.21,0.00016438,2]
[332669995,1721415043515,-500.0,0.00016438,2]
[332669997,1721415043524,-500.0,0.00016438,2]
[332669999,1721415043533,-500.0,0.00016438,2]
[332670001,1721415043543,-500.0,0.00016438,2]
[332670003,1721415043553,-808.4,0.00016438,2]
[332670005,1721415043562,-500.0,0.00016438,2]
[332670007,1721415043572,-500.0,0.00016438,2]
[332670009,1721415043582,-500.0,0.00016438,2]
[332670011,1721415043591,-1086.67,0.00016438,2]
[332670013,1721415043601,-846.82,0.00016438,2]
[332670015,1721415043611,-500.0,0.00016438,2]
[332670017,1721415043621,-500.0,0.00016438,2]
[332670019,1721415043630,-500.0,0.00016438,2]
[332670021,1721415043639,-500.0,0.00016438,2]
[332670023,1721415043649,-710.29,0.00016438,2]
[332670025,1721415043659,-511.57707046,0.00016438,2]
[332670027,1721415043668,-500.0,0.00016438,2]
[332670029,1721415043678,-500.0,0.00016438,2]
[332670031,1721415043687,-502.08334899,0.00016438,2]
[332670033,1721415043702,-900.52,0.00016438,2]
[332670035,1721415043712,-502.41637901,0.00016438,2]
[332670037,1721415043721,-500.0,0.00016438,2]
[332670039,1721415043732,-500.0,0.00016438,2]
[332670041,1721415043741,-953.22,0.00016438,2]
[332670043,1721415043751,-500.0,0.00016438,2]
[332670045,1721415043761,-500.0,0.00016438,2]
[332670047,1721415043771,-500.0,0.00016438,2]
[332670049,1721415043780,-500.0,0.00016438,2]
[332670050,1721415043790,-1708.09,0.00016438,2]
[332670052,1721415043799,-500.0,0.00016438,2]
[332670054,1721415043809,-500.0,0.00016438,2]
[332670056,1721415043820,-500.0,0.00016438,2]
[332670058,1721415043829,-500.0,0.00016438,2]
[332670060,1721415043839,-422.71958696,0.00016438,2]
[332670062,1721415043849,-227.68672824,0.00016438,2]
[332670064,1721415043859,-500.0,0.00016438,2]
[332670066,1721415043869,-500.0,0.00016438,2]
[332670068,1721415043879,-790.48,0.00016438,2]
[332670070,1721415043889,-506.21006842,0.00016438,2]
[332670072,1721415043899,-2186.65,0.00016438,2]
[332670074,1721415043909,-500.0,0.00016438,2]
[332670076,1721415043919,-500.0,0.00016438,2]
[332670078,1721415043928,-4444.06,0.00016438,2]
[332670080,1721415043938,-500.0,0.00016438,2]
[332670082,1721415043949,-1227.69,0.00016438,2]
[332670084,1721415043959,-500.0,0.00016438,2]
[332670086,1721415043968,-500.0,0.00016438,2]
[332670088,1721415043979,-997.15,0.00016438,2]
[332670090,1721415043988,-500.0,0.00016438,2]
[332670092,1721415043999,-500.0,0.00016438,2]
[332670094,1721415044010,-500.0,0.00016438,2]
[332670096,1721415044020,-826.86,0.00016438,2]
[332670098,1721415044031,-500.0,0.00016438,2]
[332670101,1721415044055,-1992.36,0.00016438,2]
[332670103,1721415044064,-818.51,0.00016438,2]
[332670105,1721415044074,-1249.3,0.00016438,2]
[332670108,1721415044083,-500.0,0.00016438,2]
[332670111,1721415044093,-332.295897,0.00016438,2]
[332670114,1721415044102,-500.0,0.00016438,2]
[332670116,1721415044113,-332.295897,0.00016438,2]
[332670120,1721415044122,-332.295897,0.00016438,2]
[332670123,1721415044132,-500.0,0.00016438,2]
[332670126,1721415044141,-500.0,0.00016438,2]
[332670130,1721415044151,-332.295897,0.00016438,2]
[332670133,1721415044161,-500.0,0.00016438,2]
[332670135,1721415044170,-513.58073666,0.00016438,2]
[332670138,1721415044180,-332.295897,0.00016438,2]
[332670140,1721415044189,-332.295897,0.00016438,2]
[332670142,1721415044200,-1282.01,0.00016438,2]
[332670144,1721415044209,-332.295897,0.00016438,2]
[332670146,1721415044219,-332.295897,0.00016438,2]
[332670148,1721415044229,-552.18,0.00016438,2]
[332670150,1721415044239,-552.18,0.00016438,2]
[332670152,1721415044251,-552.18,0.00016438,2]
[332670154,1721415044260,-552.18,0.00016438,2]
[332670156,1721415044270,-500.0,0.00016438,2]
[332670158,1721415044280,-552.18,0.00016438,2]
[332670160,1721415044290,-552.18,0.00016438,2]
[332670162,1721415044299,-552.18,0.00016438,2]
[332670164,1721415044309,-552.18,0.00016438,2]
[332670166,1721415044319,-552.18,0.00016438,2]
[332670168,1721415044328,-552.18,0.00016438,2]
[332670170,1721415044338,-552.18,0.00016438,2]
[332670172,1721415044348,-552.18,0.00016438,2]
[332670174,1721415044359,-552.18,0.00016438,2]
[332670176,1721415044368,-552.18,0.00016438,2]
[332670178,1721415044380,-500.0,0.00016438,2]
[332670180,1721415044391,-552.18,0.00016438,2]
[332670182,1721415044402,-500.0,0.00016438,2]
[332670184,1721415044413,-552.18,0.00016438,2]
[332670186,1721415044423,-500.0,0.00016438,2]
[332670188,1721415044435,-552.18,0.00016438,2]
[332670190,1721415044446,-552.18,0.00016438,2]
[332670192,1721415044455,-552.18,0.00016438,2]
[332670194,1721415044466,-552.18,0.00016438,2]
[332670196,1721415044475,-552.18,0.00016438,2]
[332670198,1721415044487,-552.18,0.00016438,2]
[332670200,1721415044498,-552.18,0.00016438,2]
[332670202,1721415044507,-552.22055674,0.00016438,2]
[332670204,1721415044517,-788.94,0.00016438,2]
[332670206,1721415044527,-503.86490173,0.00016438,2]
[332670208,1721415044538,-507.59370746,0.00016438,2]
[332670211,1721415044550,-500.0,0.00016438,2]
[332670213,1721415044560,-500.0,0.00016438,2]
[332670216,1721415044570,-503.42739605,0.00016438,2]
[332670218,1721415044580,-513.18244544,0.00016438,2]
[332670220,1721415044589,-500.0,0.00016438,2]
[332670222,1721415044599,-500.0,0.00016438,2]
[332670224,1721415044610,-709.18,0.00016438,2]
[332670227,1721415044621,-1347.69,0.00016438,2]
[332670229,1721415044632,-500.0,0.00016438,2]
[332670231,1721415044642,-500.0,0.00016438,2]
[332670233,1721415044653,-737.64,0.00016438,2]
[332670235,1721415044662,-11435.73,0.00016438,2]
[332670236,1721415044672,-500.0,0.00016438,2]
[332670238,1721415044681,-500.0,0.00016438,2]
[332670240,1721415044691,-500.0,0.00016438,2]
[332670242,1721415044701,-500.0,0.00016438,2]
[332670244,1721415044711,-504.20490734,0.00016438,2]
[332670246,1721415044720,-685.54,0.00016438,2]
[332670248,1721415044729,-500.0,0.00016438,2]
[332670250,1721415044740,-500.0,0.00016438,2]
[332670252,1721415044749,-500.0,0.00016438,2]
[332670254,1721415044759,-2888.44,0.00016438,2]
[332670256,1721415044768,-5140.12,0.00016438,2]
[332670258,1721415044778,-500.0,0.00016438,2]
[332670260,1721415044787,-661.92,0.00016438,2]
[332670262,1721415044797,-500.0,0.00016438,2]
[332670264,1721415044806,-500.0,0.00016438,2]
[332670266,1721415044816,-500.0,0.00016438,2]
[332670268,1721415044825,-500.0,0.00016438,2]
[332670269,1721415044835,-500.0,0.00016438,2]
[332670271,1721415044844,-500.0,0.00016438,2]
[332670273,1721415044854,-560.69662456,0.00016438,2]
[332670275,1721415044863,-500.0,0.00016438,2]
[332670277,1721415044873,-500.0,0.00016438,2]
[332670279,1721415044883,-500.0,0.00016438,2]
[332670281,1721415044893,-502.7411984,0.00016438,2]
[332670283,1721415044903,-616.33,0.00016438,2]
[332670285,1721415044912,-500.0,0.00016438,2]
[332670287,1721415044922,-500.0,0.00016438,2]
[332670289,1721415044931,-500.0,0.00016438,2]
[332670291,1721415044944,-500.0,0.00016438,2]
[332670293,1721415044954,-500.0,0.00016438,2]
[332670295,1721415044964,-2248.4,0.00016438,2]
[332670297,1721415044973,-500.0,0.00016438,2]
[332670298,1721415044983,-500.0,0.00016438,2]
[332670299,1721415044993,-500.0,0.00016438,2]
[332670300,1721415045003,-500.0,0.00016438,2]
[332670301,1721415045012,-500.0,0.00016438,2]
[332670302,1721415045021,-500.0,0.00016438,2]
[332670303,1721415045031,-500.0,0.00016438,2]
[332670304,1721415045040,-206.4035798,0.00016438,2]
[332670305,1721415045049,-503.65426862,0.00016438,2]
[332670306,1721415045059,-500.0,0.00016438,2]
[332670307,1721415045068,-530.78,0.00016438,2]
[332670308,1721415045078,-718.39,0.00016438,2]
[332670309,1721415045087,-1193.28,0.00016438,2]
[332670310,1721415045096,-517.65902373,0.00016438,2]
[332670311,1721415045105,-500.0,0.00016438,2]
[332670312,1721415045114,-500.0,0.00016438,2]
[332670313,1721415045123,-956.15,0.00016438,2]
[332670314,1721415045133,-1350.86,0.00016438,2]
[332670315,1721415045142,-580.47,0.00016438,2]
[332670316,1721415045151,-527.16860966,0.00016438,2]
[332670317,1721415045161,-789.05,0.00016438,2]
[332670318,1721415045170,-500.0,0.00016438,2]
[332670319,1721415045179,-500.0,0.00016438,2]
[332670320,1721415045188,-500.0,0.00016438,2]
[332670321,1721415045198,-4001.82,0.00016438,2]
[332670322,1721415045208,-500.0,0.00016438,2]
[332670323,1721415045217,-3646.35,0.00016438,2]
[332670324,1721415045227,-1343.15,0.00016438,2]
[332670325,1721415045237,-517.02299367,0.00016438,2]
[332670326,1721415045250,-500.0,0.00016438,2]
[332670327,1721415045260,-500.0,0.00016438,2]
[332670328,1721415045269,-500.0,0.00016438,2]
[332670329,1721415045279,-500.0,0.00016438,2]
[332670330,1721415045288,-500.0,0.00016438,2]
[332670331,1721415045299,-500.0,0.00016438,2]
[332670333,1721415045308,-500.0,0.00016438,2]
[332670335,1721415045319,-1689.75,0.00016438,2]
[332670337,1721415045328,-1920.46,0.00016438,2]
[332670338,1721415045338,-500.0,0.00016438,2]
[332670339,1721415045347,-500.0,0.00016438,2]
[332670340,1721415045357,-2540.0,0.00016438,2]
[332670341,1721415045366,-500.0,0.00016438,2]
[332670344,1721415045377,-500.0,0.00016438,2]
[332670345,1721415045386,-500.0,0.00016438,2]
[332670347,1721415045395,-500.0,0.00016438,2]
[332670349,1721415045405,-506.90674039,0.00016438,2]
[332670351,1721415045415,-500.0,0.00016438,2]
[332670353,1721415045424,-928.74,0.00016438,2]
[332670355,1721415045435,-552.60727105,0.00016438,2]
[332670357,1721415045445,-500.0,0.00016438,2]
[332670359,1721415045455,-500.0,0.00016438,2]
[332670361,1721415045465,-859.55,0.00016438,2]
[332670363,1721415045475,-500.0,0.00016438,2]
[332670365,1721415045485,-509.48490788,0.00016438,2]
[332670367,1721415045495,-500.0,0.00016438,2]
[332670368,1721415045505,-500.0,0.00016438,2]
[332670369,1721415045515,-500.0,0.00016438,2]
[332670370,1721415045526,-500.0,0.00016438,2]
[332670371,1721415045537,-196.16186763,0.00016438,2]
[332670372,1721415045547,-1520.45655468,0.00016438,2]
[332670373,1721415045928,-342.45344532,0.00016438,2]
[332670374,1721415045938,-500.0,0.00016438,2]
[332670375,1721415045950,-2618.28,0.00016438,2]
[332670376,1721415045960,-2618.28,0.00016438,2]
[332670377,1721415045972,-2618.28,0.00016438,2]
[332670378,1721415045983,-500.0,0.00016438,2]
[332670379,1721415045994,-500.0,0.00016438,2]
[332670380,1721415046004,-2618.28,0.00016438,2]
[332670381,1721415046014,-2618.28,0.00016438,2]
[332670382,1721415046024,-2618.28,0.00016438,2]
[332670383,1721415046035,-2618.28,0.00016438,2]
[332670384,1721415046046,-500.0,0.00016438,2]
[332670385,1721415046058,-500.0,0.00016438,2]
[332670386,1721415046067,-500.0,0.00016438,2]
[332670387,1721415046076,-500.0,0.00016438,2]
[332670388,1721415046086,-500.0,0.00016438,2]
[332670389,1721415046095,-500.0,0.00016438,2]
[332670390,1721415046104,-500.0,0.00016438,2]
[332670391,1721415046114,-500.0,0.00016438,2]
[332670392,1721415046123,-500.0,0.00016438,2]
[332670393,1721415046134,-4527.99052469,0.00016438,2]
[332670469,1721415048898,-1019.33148223,0.00016438,2]
[332670492,1721415050391,-14548.43799308,0.00016438,2]
[332670494,1721415050403,-666.01,0.00016438,2]
[332670496,1721415050414,-500.0,0.00016438,2]
[332670498,1721415050426,-682.77,0.00016438,2]
[332670500,1721415050437,-500.0,0.00016438,2]
[332670502,1721415050448,-500.0,0.00016438,2]
[332670504,1721415050459,-9859.09,0.00016438,2]
[332670506,1721415050469,-636.18,0.00016438,2]
[332670508,1721415050480,-500.0,0.00016438,2]